[Event "12th Arad Open 2019"]
[Site "Arad"]
[Date "2019.07.29"]
[Round "7.20"]
[White "Ileana, George"]
[Black "Peycheva, Gergana"]
[Result "1-0"]
[ECO "E06"]
[WhiteElo "2344"]
[BlackElo "2065"]
[Annotator "NA"]
[PlyCount "147"]
[EventDate "2019.07.24"]
[EventType "swiss"]
[EventCountry "ROU"]
[SourceTitle "playchess.com"]
[Source "ChessBase"]
[SourceQuality "1"]
[TimeControl "40/5400+30:900+30"]

1. Nf3 {[%emt 0:00:00]} d5 {[%emt 0:00:00]} 2. d4 {[%emt 0:00:02]} e6 {[%emt 0:01:05]} 3. c4 {[%emt 0:00:35]} Nf6 {[%emt 0:01:00]} 4. g3 {[%emt 0:00:13]} Be7 {[%emt 0:00:57]} 5. Bg2 {[%emt 0:00:05]} O-O {[%emt 0:01:07]} 6. O-O {[%emt 0:00:13]} c6 {[%emt 0:00:44]} 7. Qc2 {[%emt 0:01:03]} b6 {[%emt 0:01:25]} 8. Rd1 {[%emt 0:00:06]} Bb7 {[%emt 0:03:54]} 9. Ne5 {[%emt 0:00:07]} Nbd7 {[%emt 0:07:18]} 10. cxd5 {[%emt 0:00:07]} cxd5 {[%emt 0:01:20]} 11. Nc6 {[%emt 0:00:05]} Bxc6 {[%emt 0:02:28]} 12. Qxc6 {[%emt 0:00:04]} Qc8 {[%emt 0:03:07]} 13. Qc3 {[%emt 0:04:08]} Qb7 {[%emt 0:04:27]} 14. Qd3 {[%emt 0:00:22]} Rac8 {[%emt 0:04:42]} 15. Nc3 {[%emt 0:00:19]} Rfd8 {[%emt 0:01:50]} 16. Bd2 {[%emt 0:00:25]} a6 {[%emt 0:05:10]} 17. Rac1 {[%emt 0:00:14]} h6 {[%emt 0:01:47]} 18. e3 {[%emt 0:00:56]} b5 {[%emt 0:10:31]} 19. Nb1 {[%emt 0:00:59]} Ne4 {[%emt 0:04:41]} 20. Be1 {[%emt 0:01:27]} Nd6 {[%emt 0:06:29]} 21. b3 {[%emt 0:00:09]} Ne4 {[%emt 0:01:39]} 22. f3 {[%emt 0:00:29]} Nef6 {[%emt 0:01:34]} 23. Ba5 {[%emt 0:00:41]} Re8 {[%emt 0:02:56]} 24. Bd2 {[%emt 0:00:52]} Bd6 {[%emt 0:02:11]} 25. Rxc8 {[%emt 0:00:09]} Rxc8 {[%emt 0:00:54]} 26. Rc1 {[%emt 0:00:04]} Kf8 {[%emt 0:05:22]} 27. Rxc8+ {[%emt 0:00:25]} Qxc8 {[%emt 0:00:06]} 28. Qc3 {[%emt 0:00:10]} Qxc3 {[%emt 0:00:36]} 29. Bxc3 {[%emt 0:00:05]} b4 {[%emt 0:01:27]} 30. Bb2 {[%emt 0:00:30]} Ke8 {[%emt 0:02:46]} 31. Bf1 {[%emt 0:00:08]} Nb8 {[%emt 0:01:32]} 32. Nd2 {[%emt 0:00:46]} Kd8 {[%emt 0:01:55]} 33. Bd3 {[%emt 0:00:24]} h5 {[%emt 0:01:56]} 34. Kg2 {[%emt 0:00:32]} Ke7 {[%emt 0:02:48]} 35. e4 {[%emt 0:01:28]} Bc7 {[%emt 0:01:56]} 36. Nf1 {[%emt 0:00:37]} Bb6 {[%emt 0:01:05]} 37. Ne3 {[%emt 0:00:31]} g6 {[%emt 0:01:47]} 38. Nc2 {[%emt 0:00:11]} a5 {[%emt 0:00:42]} 39. e5 {[%emt 0:00:57]} Ne8 {[%emt 0:03:12]} 40. Bc1 {[%emt 0:00:00]} Nc6 {[%emt 0:00:00]} 41. Be3 {[%emt 0:01:26]} Ng7 {[%emt 0:04:30]} 42. g4 {[%emt 0:00:07]} f5 {[%emt 0:04:50]} 43. exf6+ {[%emt 0:03:30]} Kxf6 {[%emt 0:00:33]} 44. h4 {[%emt 0:00:03]} Kf7 {[%emt 0:01:10]} 45. Bb5 {[%emt 0:00:17]} Na7 {[%emt 0:02:12]} 46. Ba4 {[%emt 0:01:15]} Ne8 {[%emt 0:01:12]} 47. Ne1 {[%emt 0:02:28]} Nd6 {[%emt 0:04:44]} 48. Nd3 {[%emt 0:09:31]} Nab5 {[%emt 0:01:03]} 49. Nc5 {[%emt 0:00:42]} Nc3 {[%emt 0:02:08]} 50. Bd7 {[%emt 0:00:10]} Bxc5 {[%emt 0:01:07]} 51. dxc5 {[%emt 0:00:06]} Ke7 {[%emt 0:01:14]} 52. Bc6 {[%emt 0:01:00]} Nf7 {[%emt 0:00:56]} 53. Bb7 {[%emt 0:02:12]} Kd7 {[%emt 0:01:34]} 54. Bf4 {[%emt 0:14:03]} e5 {[%emt 0:02:58]} 55. Bg3 {[%emt 0:00:46]} Kc7 {[%emt 0:00:08]} 56. Ba8 {[%emt 0:02:53]} Kc8 {[%emt 0:01:22]} 57. Bc6 {[%emt 0:00:47]} hxg4 {[%emt 0:00:43]} 58. fxg4 {[%emt 0:00:56]} d4 {[%emt 0:00:31]} 59. Be8 {[%emt 0:01:21]} d3 {[%emt 0:00:24]} 60. Be1 {[%emt 0:00:33]} Nh8 {[%emt 0:00:40]} 61. Kf3 {[%emt 0:00:33]} Nxa2 {[%emt 0:00:28]} 62. Ke4 {[%emt 0:00:37]} Nc1 {[%emt 0:00:23]} 63. Ba4 {[%emt 0:00:07]} Nf7 {[%emt 0:00:38]} 64. Bd2 {[%emt 0:00:20]} Ne2 {[%emt 0:00:30]} 65. Kxd3 {[%emt 0:00:06]} Nd4 {[%emt 0:00:21]} 66. h5 {[%emt 0:00:28]} g5 {[%emt 0:00:41]} 67. Be3 {[%emt 0:01:03]} Nf3 {[%emt 0:00:30]} 68. Ke4 {[%emt 0:00:10]} Nh2 {[%emt 0:00:02]} 69. Be8 {[%emt 0:00:47]} Nh6 {[%emt 0:00:35]} 70. Bxg5 {[%emt 0:00:09]} N2xg4 {[%emt 0:00:43]} 71. Bxh6 {[%emt 0:00:56]} Nxh6 {[%emt 0:00:04]} 72. Kxe5 {[%emt 0:00:09]} Kc7 {[%emt 0:00:39]} 73. Kf6 {[%emt 0:01:05]} Kd8 {[%emt 0:00:03]} 74. Bb5 {[%emt 0:00:20]} 1-0

[Event "12th Arad Open 2019"]
[Site "Arad"]
[Date "2019.07.29"]
[Round "7.22"]
[White "Florescu, Codrut-Constantin"]
[Black "Obada, Ema"]
[Result "1-0"]
[ECO "E18"]
[WhiteElo "2312"]
[BlackElo "1946"]
[Annotator "NA"]
[PlyCount "97"]
[EventDate "2019.07.24"]
[EventType "swiss"]
[EventCountry "ROU"]
[SourceTitle "playchess.com"]
[Source "ChessBase"]
[SourceQuality "1"]
[TimeControl "40/5400+30:900+30"]

1. d4 {[%emt 0:00:00]} Nf6 {[%emt 0:00:00]} 2. Nf3 {[%emt 0:00:00]} e6 {[%emt 0:00:00]} 3. g3 {[%emt 0:00:00]} b6 {[%emt 0:00:00]} 4. Bg2 {[%emt 0:00:00]} Bb7 {[%emt 0:00:00]} 5. O-O {[%emt 0:00:00]} Be7 {[%emt 0:00:07]} 6. c4 {[%emt 0:00:06]} O-O {[%emt 0:00:13]} 7. Nc3 {[%emt 0:00:06]} d5 {[%emt 0:01:34]} 8. Ne5 {[%emt 0:02:37]} Qc8 {[%emt 0:04:42]} 9. cxd5 {[%emt 0:00:32]} Nxd5 {[%emt 0:00:29]} 10. Qa4 {[%emt 0:05:35]} Nxc3 {[%emt 0:08:43]} 11. bxc3 {[%emt 0:00:06]} Bxg2 {[%emt 0:02:48]} 12. Kxg2 {[%emt 0:00:33]} Qb7+ {[%emt 0:01:28]} 13. f3 {[%emt 0:00:08]} c5 {[%emt 0:01:30]} 14. Be3 {[%emt 0:05:14]} Na6 {[%emt 0:23:24]} 15. Rab1 {[%emt 0:08:08]} Rac8 {[%emt 0:06:15]} 16. Rfc1 {[%emt 0:01:54]} Rfd8 {[%emt 0:05:32]} 17. Qb5 {[%emt 0:09:04]} Nc7 {[%emt 0:01:49]} 18. Qa4 {[%emt 0:00:15]} Nd5 {[%emt 0:00:46]} 19. Bd2 {[%emt 0:00:23]} Bd6 {[%emt 0:09:19]} 20. Nc4 {[%emt 0:01:54]} Bb8 {[%emt 0:00:54]} 21. e4 {[%emt 0:11:47]} Ne7 {[%emt 0:02:27]} 22. Be3 {[%emt 0:01:42]} cxd4 {[%emt 0:00:34]} 23. cxd4 {[%emt 0:00:06]} f5 {[%emt 0:10:08]} 24. Nd2 {[%emt 0:01:41]} fxe4 {[%emt 0:01:03]} 25. fxe4 {[%emt 0:02:50]} Nf5 {[%emt 0:02:33]} 26. Bf2 {[%emt 0:00:09]} Rxc1 {[%emt 0:02:48]} 27. Rxc1 {[%emt 0:00:09]} Nd6 {[%emt 0:01:50]} 28. Qb3 {[%emt 0:01:06]} Qf7 {[%emt 0:02:04]} 29. Be3 {[%emt 0:03:37]} Qg6 {[%emt 0:00:34]} 30. Rc6 {[%emt 0:01:59]} Rf8 {[%emt 0:03:28]} 31. e5 {[%emt 0:10:13]} Nf5 {[%emt 0:01:54]} 32. Bf2 {[%emt 0:00:15]} Re8 {[%emt 0:01:42]} 33. Nf3 {[%emt 0:00:32]} h6 {[%emt 0:02:02]} 34. d5 {[%emt 0:02:07]} Qf7 {[%emt 0:00:14]} 35. d6 {[%emt 0:00:33]} Qb7 {[%emt 0:02:30]} 36. Qb5 {[%emt 0:04:26]} Qf7 {[%emt 0:01:13]} 37. Qc4 {[%emt 0:02:02]} Rf8 {[%emt 0:00:26]} 38. Qe4 {[%emt 0:05:11]} g6 {[%emt 0:00:38]} 39. a4 {[%emt 0:00:58]} Kh7 {[%emt 0:00:27]} 40. g4 {[%emt 0:00:00]} Ng7 {[%emt 0:00:00]} 41. Bh4 {[%emt 0:03:03]} Qb7 {[%emt 0:02:24]} 42. Qc2 {[%emt 0:02:59]} Rf4 {[%emt 0:00:54]} 43. h3 {[%emt 0:02:52]} Qa6 {[%emt 0:04:04]} 44. d7 {[%emt 0:01:25]} Rxf3 {[%emt 0:00:17]} 45. Kxf3 {[%emt 0:00:52]} Qf1+ {[%emt 0:00:04]} 46. Bf2 {[%emt 0:03:46]} Qxh3+ {[%emt 0:00:36]} 47. Bg3 {[%emt 0:01:50]} Qh1+ {[%emt 0:02:06]} 48. Ke3 {[%emt 0:03:11]} Qd5 {[%emt 0:02:23]} 49. Qd2 1-0

[Event "12th Arad Open 2019"]
[Site "Arad"]
[Date "2019.07.29"]
[Round "7.23"]
[White "Aciu, Malina-Andreea"]
[Black "Patrascu, Catalin-Lucian"]
[Result "1-0"]
[ECO "B41"]
[WhiteElo "2047"]
[BlackElo "2292"]
[Annotator "NA"]
[PlyCount "144"]
[EventDate "2019.07.24"]
[EventType "swiss"]
[EventCountry "ROU"]
[SourceTitle "playchess.com"]
[Source "ChessBase"]
[SourceQuality "1"]
[TimeControl "40/5400+30:900+30"]

1. e4 {[%emt 0:00:00]} c5 {[%emt 0:00:00]} 2. Nf3 {[%emt 0:00:00]} e6 {[%emt 0:00:00]} 3. d4 {[%emt 0:00:00]} cxd4 {[%emt 0:00:00]} 4. Nxd4 {[%emt 0:00:00]} a6 {[%emt 0:00:00]} 5. c4 {[%emt 0:00:00]} Qc7 {[%emt 0:00:00]} 6. Nc3 {[%emt 0:00:08]} Nf6 {[%emt 0:00:00]} 7. Be2 {[%emt 0:00:04]} b6 {[%emt 0:00:00]} 8. f4 {[%emt 0:00:06]} Bb4 {[%emt 0:16:56]} 9. e5 {[%emt 0:05:09]} Ne4 {[%emt 0:00:55]} 10. Qc2 {[%emt 0:00:52]} Bb7 {[%emt 0:01:57]} 11. O-O {[%emt 0:02:46]} Nxc3 {[%emt 0:06:09]} 12. bxc3 {[%emt 0:00:07]} Bc5 {[%emt 0:01:01]} 13. Kh1 {[%emt 0:09:25]} Nc6 {[%emt 0:05:33]} 14. Nb3 {[%emt 0:01:47]} Ne7 {[%emt 0:07:18]} 15. Bd3 {[%emt 0:12:12]} Ng6 {[%emt 0:19:01]} 16. a4 {[%emt 0:20:53]} Nh4 {[%emt 0:11:17]} 17. Be4 {[%emt 0:01:12]} Bxe4 {[%emt 0:03:50]} 18. Qxe4 {[%emt 0:00:05]} Rc8 {[%emt 0:00:10]} 19. a5 {[%emt 0:12:56]} Be7 {[%emt 0:03:55]} 20. axb6 {[%emt 0:07:02]} Qxb6 {[%emt 0:00:47]} 21. Na5 {[%emt 0:01:14]} O-O {[%emt 0:01:56]} 22. Be3 {[%emt 0:01:01]} Qc7 {[%emt 0:02:06]} 23. Rfd1 {[%emt 0:03:25]} Rb8 {[%emt 0:07:06]} 24. Qc2 {[%emt 0:10:38]} Nf5 {[%emt 0:05:46]} 25. Bf2 {[%emt 0:00:11]} h5 {[%emt 0:00:23]} 26. g3 {[%emt 0:01:49]} Rfc8 {[%emt 0:02:11]} 27. Qe2 {[%emt 0:00:58]} g6 {[%emt 0:02:14]} 28. h3 {[%emt 0:05:00]} d6 {[%emt 0:01:13]} 29. g4 {[%emt 0:00:32]} hxg4 {[%emt 0:00:03]} 30. hxg4 {[%emt 0:00:02]} Nh6 {[%emt 0:02:04]} 31. Kg2 {[%emt 0:00:57]} dxe5 {[%emt 0:00:04]} 32. fxe5 {[%emt 0:00:06]} Bg5 {[%emt 0:01:10]} 33. Bd4 {[%emt 0:00:32]} Kg7 {[%emt 0:00:37]} 34. c5 {[%emt 0:01:42]} Ng8 {[%emt 0:00:40]} 35. c4 {[%emt 0:00:53]} Ne7 {[%emt 0:00:18]} 36. Qf3 {[%emt 0:00:42]} Nc6 {[%emt 0:00:42]} 37. Nxc6 {[%emt 0:02:03]} Qxc6 {[%emt 0:00:01]} 38. Qxc6 {[%emt 0:00:39]} Rxc6 {[%emt 0:00:00]} 39. Rab1 {[%emt 0:00:18]} Rbc8 {[%emt 0:00:52]} 40. Rb7 {[%emt 0:00:00]} R8c7 {[%emt 0:00:00]} 41. Rxc7 {[%emt 0:05:03]} Rxc7 {[%emt 0:01:03]} 42. Ra1 {[%emt 0:00:13]} Be7 {[%emt 0:09:04]} 43. Ra5 {[%emt 0:01:06]} Rc6 {[%emt 0:01:59]} 44. Kf3 {[%emt 0:00:09]} Bd8 {[%emt 0:01:13]} 45. Ra4 {[%emt 0:01:09]} a5 {[%emt 0:01:40]} 46. Ke4 {[%emt 0:00:17]} Kf8 {[%emt 0:00:39]} 47. Ra2 {[%emt 0:00:58]} Ke8 {[%emt 0:00:56]} 48. Ra3 {[%emt 0:00:48]} Ra6 {[%emt 0:00:35]} 49. Ra2 {[%emt 0:04:21]} Kd7 {[%emt 0:02:37]} 50. Rf2 {[%emt 0:01:18]} Ke8 {[%emt 0:00:31]} 51. Ra2 {[%emt 0:00:04]} a4 {[%emt 0:01:08]} 52. Bc3 {[%emt 0:01:49]} Kd7 {[%emt 0:00:31]} 53. Rf2 {[%emt 0:00:26]} Kc6 {[%emt 0:00:42]} 54. Bb4 {[%emt 0:00:26]} Ra7 {[%emt 0:00:10]} 55. Kd4 {[%emt 0:01:06]} Be7 {[%emt 0:00:32]} 56. Ra2 {[%emt 0:01:01]} Bf8 {[%emt 0:00:35]} 57. Ra3 {[%emt 0:00:25]} Bh6 {[%emt 0:00:31]} 58. Ra1 {[%emt 0:00:59]} Bf4 {[%emt 0:00:38]} 59. Ke4 {[%emt 0:00:11]} Bg3 {[%emt 0:00:28]} 60. Rd1 {[%emt 0:01:29]} a3 {[%emt 0:00:35]} 61. Rd6+ {[%emt 0:02:18]} Kc7 {[%emt 0:00:07]} 62. Bc3 {[%emt 0:02:17]} a2 {[%emt 0:00:16]} 63. Rd1 {[%emt 0:00:24]} Ra3 {[%emt 0:01:01]} 64. Bd4 {[%emt 0:00:15]} g5 {[%emt 0:00:33]} 65. Rd3 {[%emt 0:00:52]} Rxd3 {[%emt 0:00:37]} 66. Kxd3 {[%emt 0:00:01]} Bf2 {[%emt 0:00:17]} 67. Ba1 {[%emt 0:00:17]} Kc6 {[%emt 0:00:20]} 68. Kc2 {[%emt 0:00:22]} Kxc5 {[%emt 0:00:05]} 69. Kd3 {[%emt 0:00:37]} Kb4 {[%emt 0:00:35]} 70. Bb2 {[%emt 0:00:20]} Kb3 {[%emt 0:00:28]} 71. Ba1 {[%emt 0:00:05]} Bc5 {[%emt 0:00:08]} 72. Bc3 {[%emt 0:00:36]} Ba3 {[%emt 0:00:16]} 1-0

[Event "12th Arad Open 2019"]
[Site "Arad"]
[Date "2019.07.29"]
[Round "7.24"]
[White "Gorodetzky, Matan"]
[Black "Turlea, Constantin"]
[Result "1-0"]
[ECO "B51"]
[WhiteElo "2290"]
[BlackElo "1938"]
[Annotator "NA"]
[PlyCount "57"]
[EventDate "2019.07.24"]
[EventType "swiss"]
[EventCountry "ROU"]
[SourceTitle "playchess.com"]
[Source "ChessBase"]
[SourceQuality "1"]
[TimeControl "40/5400+30:900+30"]

1. e4 {[%emt 0:00:00]} c5 {[%emt 0:02:46]} 2. Nf3 {[%emt 0:00:00]} d6 {[%emt 0:00:22]} 3. Bb5+ {[%emt 0:00:18]} Nc6 {[%emt 0:01:00]} 4. O-O {[%emt 0:03:10]} Bd7 {[%emt 0:01:09]} 5. Ba4 {[%emt 0:01:01]} Nf6 {[%emt 0:00:08]} 6. Re1 {[%emt 0:02:57]} e6 {[%emt 0:00:20]} 7. c3 {[%emt 0:07:32]} Be7 {[%emt 0:01:41]} 8. d4 {[%emt 0:00:28]} cxd4 {[%emt 0:00:06]} 9. cxd4 {[%emt 0:00:19]} e5 {[%emt 0:02:08]} 10. d5 {[%emt 0:06:47]} Nb8 {[%emt 0:01:35]} 11. Bxd7+ {[%emt 0:06:23]} Nbxd7 {[%emt 0:02:51]} 12. Nc3 {[%emt 0:00:37]} O-O {[%emt 0:00:18]} 13. h3 {[%emt 0:06:31]} Rc8 {[%emt 0:04:18]} 14. Be3 {[%emt 0:03:28]} a6 {[%emt 0:00:33]} 15. Nd2 {[%emt 0:07:19]} Nc5 {[%emt 0:07:36]} 16. Qe2 {[%emt 0:00:32]} b5 {[%emt 0:00:53]} 17. a3 {[%emt 0:07:10]} Qc7 {[%emt 0:07:44]} 18. b4 {[%emt 0:05:23]} Ncd7 {[%emt 0:00:45]} 19. Rec1 {[%emt 0:00:27]} Qb7 {[%emt 0:02:27]} 20. a4 {[%emt 0:00:42]} bxa4 {[%emt 0:11:23]} 21. Rxa4 {[%emt 0:00:28]} Nb8 {[%emt 0:00:09]} 22. Nc4 {[%emt 0:02:54]} Nfd7 {[%emt 0:01:11]} 23. Na5 {[%emt 0:00:42]} Qc7 {[%emt 0:05:06]} 24. Nc6 {[%emt 0:06:16]} Nxc6 {[%emt 0:02:52]} 25. dxc6 {[%emt 0:01:17]} Qxc6 {[%emt 0:09:05]} 26. Nd5 {[%emt 0:00:47]} Qxc1+ {[%emt 0:00:40]} 27. Bxc1 {[%emt 0:00:03]} Rxc1+ {[%emt 0:00:07]} 28. Kh2 {[%emt 0:00:03]} Bg5 {[%emt 0:01:26]} 29. Qg4 {[%emt 0:02:00]} 1-0

[Event "12th Arad Open 2019"]
[Site "Arad"]
[Date "2019.07.29"]
[Round "7.25"]
[White "Tampea, Radu"]
[Black "Nastase, Robert-Paul"]
[Result "0-1"]
[ECO "C01"]
[WhiteElo "1913"]
[BlackElo "2283"]
[Annotator "NA"]
[PlyCount "119"]
[EventDate "2019.07.24"]
[EventType "swiss"]
[EventCountry "ROU"]
[SourceTitle "playchess.com"]
[Source "ChessBase"]
[SourceQuality "1"]
[TimeControl "40/5400+30:900+30"]

1. e4 {[%emt 0:00:00]} e6 {[%emt 0:00:05]} 2. d4 {[%emt 0:00:00]} d5 {[%emt 0:00:10]} 3. exd5 {[%emt 0:00:35]} exd5 {[%emt 0:00:05]} 4. Nf3 {[%emt 0:00:24]} Bd6 {[%emt 0:00:09]} 5. c4 {[%emt 0:01:05]} c6 {[%emt 0:01:45]} 6. Nc3 {[%emt 0:00:19]} Ne7 {[%emt 0:00:08]} 7. Bd3 {[%emt 0:03:13]} dxc4 {[%emt 0:01:14]} 8. Bxc4 {[%emt 0:00:07]} O-O {[%emt 0:00:43]} 9. h3 {[%emt 0:00:23]} Nd7 {[%emt 0:00:37]} 10. O-O {[%emt 0:03:14]} Nb6 {[%emt 0:00:04]} 11. Bb3 {[%emt 0:00:22]} Bc7 {[%emt 0:00:52]} 12. Bg5 {[%emt 0:01:42]} Kh8 {[%emt 0:00:32]} 13. Qd2 {[%emt 0:20:19]} f6 {[%emt 0:01:11]} 14. Bf4 {[%emt 0:01:25]} Bxf4 {[%emt 0:00:06]} 15. Qxf4 {[%emt 0:00:04]} Ned5 {[%emt 0:00:07]} 16. Qd2 {[%emt 0:00:50]} Bf5 {[%emt 0:00:45]} 17. Rfe1 {[%emt 0:00:26]} g5 {[%emt 0:02:33]} 18. a3 {[%emt 0:35:17]} Nf4 {[%emt 0:00:25]} 19. Bc2 {[%emt 0:00:48]} Qd7 {[%emt 0:06:32]} 20. Bxf5 {[%emt 0:03:09]} Qxf5 {[%emt 0:00:05]} 21. Nh2 {[%emt 0:05:38]} Nc4 {[%emt 0:01:00]} 22. Qc1 {[%emt 0:01:24]} Rad8 {[%emt 0:01:50]} 23. b3 {[%emt 0:00:39]} Na5 {[%emt 0:02:44]} 24. b4 {[%emt 0:10:39]} Nb3 {[%emt 0:06:43]} 25. Qb1 {[%emt 0:00:06]} Nxd4 {[%emt 0:00:06]} 26. Qxf5 {[%emt 0:00:06]} Nxf5 {[%emt 0:00:02]} 27. Ne4 {[%emt 0:00:57]} Kg7 {[%emt 0:02:38]} 28. Nc5 {[%emt 0:01:25]} b6 {[%emt 0:00:06]} 29. Ne6+ {[%emt 0:00:05]} Nxe6 {[%emt 0:00:04]} 30. Rxe6 {[%emt 0:00:04]} Nd4 {[%emt 0:00:21]} 31. Re7+ {[%emt 0:02:32]} Rf7 {[%emt 0:00:04]} 32. Rxf7+ {[%emt 0:00:15]} Kxf7 {[%emt 0:00:01]} 33. Kf1 {[%emt 0:00:13]} Nb3 {[%emt 0:01:44]} 34. Re1 {[%emt 0:01:08]} Nd2+ {[%emt 0:01:00]} 35. Ke2 {[%emt 0:00:15]} Nc4 {[%emt 0:00:14]} 36. Rc1 {[%emt 0:00:34]} Rd2+ {[%emt 0:01:24]} 37. Ke1 {[%emt 0:00:19]} Rd4 {[%emt 0:00:02]} 38. Ke2 {[%emt 0:01:10]} Nxa3 {[%emt 0:00:14]} 39. Rxc6 {[%emt 0:00:05]} Nb5 {[%emt 0:00:04]} 40. Ke3 {[%emt 0:00:00]} Rxb4 {[%emt 0:00:00]} 41. Ng4 {[%emt 0:00:50]} h5 {[%emt 0:01:48]} 42. Nh6+ {[%emt 0:01:13]} Kg7 {[%emt 0:00:46]} 43. Nf5+ {[%emt 0:00:04]} Kf7 {[%emt 0:00:30]} 44. Ng3 {[%emt 0:02:01]} Rb3+ {[%emt 0:08:31]} 45. Kd2 {[%emt 0:01:38]} Rb2+ {[%emt 0:04:30]} 46. Ke3 {[%emt 0:00:34]} a5 {[%emt 0:00:09]} 47. Rxb6 {[%emt 0:00:43]} a4 {[%emt 0:01:17]} 48. Ne4 {[%emt 0:02:19]} a3 {[%emt 0:00:03]} 49. Rxf6+ {[%emt 0:00:52]} Kg7 {[%emt 0:04:49]} 50. Ra6 {[%emt 0:00:22]} a2 {[%emt 0:00:05]} 51. Nd2 {[%emt 0:08:58]} Nc3 {[%emt 0:03:08]} 52. Kd3 {[%emt 0:00:50]} Nb1 {[%emt 0:03:41]} 53. Nc4 {[%emt 0:01:45]} Rb3+ {[%emt 0:01:45]} 54. Kc2 {[%emt 0:01:42]} Ra3 {[%emt 0:00:06]} 55. Rxa3 {[%emt 0:01:22]} Nxa3+ {[%emt 0:00:06]} 56. Kb2 {[%emt 0:00:03]} Nxc4+ {[%emt 0:00:06]} 57. Kxa2 {[%emt 0:00:04]} Ne5 {[%emt 0:00:32]} 58. Kb3 {[%emt 0:00:09]} Nd3 {[%emt 0:00:13]} 59. Kc3 {[%emt 0:00:05]} Nf4 {[%emt 0:01:04]} 60. Kd4 0-1

[Event "12th Arad Open 2019"]
[Site "Arad"]
[Date "2019.07.29"]
[Round "7.26"]
[White "Vasiesiu, Victor"]
[Black "Voinescu, David-Ioan"]
[Result "1/2-1/2"]
[ECO "C17"]
[WhiteElo "2269"]
[BlackElo "2046"]
[Annotator "NA"]
[PlyCount "119"]
[EventDate "2019.07.24"]
[EventType "swiss"]
[EventCountry "ROU"]
[SourceTitle "playchess.com"]
[Source "ChessBase"]
[SourceQuality "1"]
[TimeControl "40/5400+30:900+30"]

1. e4 {[%emt 0:00:00]} e6 {[%emt 0:00:00]} 2. d4 {[%emt 0:00:00]} d5 {[%emt 0:00:00]} 3. Nc3 {[%emt 0:00:00]} Bb4 {[%emt 0:00:00]} 4. e5 {[%emt 0:00:00]} c5 {[%emt 0:00:00]} 5. Qg4 {[%emt 0:00:02]} Ne7 {[%emt 0:00:08]} 6. dxc5 {[%emt 0:00:04]} Bxc3+ {[%emt 0:00:06]} 7. bxc3 {[%emt 0:00:04]} Ng6 {[%emt 0:00:11]} 8. Nf3 {[%emt 0:00:54]} Nd7 {[%emt 0:00:08]} 9. Bd3 {[%emt 0:03:27]} Nxc5 {[%emt 0:00:58]} 10. O-O {[%emt 0:00:25]} Qc7 {[%emt 0:00:25]} 11. Be3 {[%emt 0:09:06]} Bd7 {[%emt 0:08:03]} 12. Rab1 {[%emt 0:01:19]} b6 {[%emt 0:04:39]} 13. Bd4 {[%emt 0:06:19]} h5 {[%emt 0:18:47]} 14. Qg5 {[%emt 0:02:00]} Nxd3 {[%emt 0:00:33]} 15. cxd3 {[%emt 0:00:12]} Qd8 {[%emt 0:02:56]} 16. Qe3 {[%emt 0:06:26]} Ne7 {[%emt 0:02:09]} 17. Nh4 {[%emt 0:08:09]} Nc6 {[%emt 0:06:02]} 18. g3 {[%emt 0:00:14]} g5 {[%emt 0:06:29]} 19. Nf3 {[%emt 0:00:40]} Rg8 {[%emt 0:00:27]} 20. Kh1 {[%emt 0:02:02]} Qe7 {[%emt 0:08:43]} 21. Rb2 {[%emt 0:05:16]} Qd8 {[%emt 0:02:02]} 22. Rc2 {[%emt 0:13:55]} Ne7 {[%emt 0:01:18]} 23. Qc1 {[%emt 0:07:14]} Nf5 {[%emt 0:00:29]} 24. Be3 {[%emt 0:01:23]} g4 {[%emt 0:03:04]} 25. Nd4 {[%emt 0:12:50]} h4 {[%emt 0:02:33]} 26. Nxf5 {[%emt 0:01:16]} exf5 {[%emt 0:00:03]} 27. Bd4 {[%emt 0:00:55]} Be6 {[%emt 0:02:03]} 28. Qh6 {[%emt 0:00:27]} Qg5 {[%emt 0:04:09]} 29. Qxg5 {[%emt 0:00:55]} Rxg5 {[%emt 0:00:02]} 30. a4 {[%emt 0:00:30]} Rg6 {[%emt 0:02:46]} 31. Rb1 {[%emt 0:02:16]} f4 {[%emt 0:02:11]} 32. gxf4 {[%emt 0:02:43]} Bf5 {[%emt 0:00:11]} 33. Rd2 {[%emt 0:00:06]} g3 {[%emt 0:03:42]} 34. fxg3 {[%emt 0:02:12]} hxg3 {[%emt 0:00:56]} 35. Rg1 {[%emt 0:01:45]} gxh2 {[%emt 0:00:15]} 36. Rxg6 {[%emt 0:00:11]} Bxg6 {[%emt 0:01:12]} 37. Rxh2 {[%emt 0:01:54]} Kd7 {[%emt 0:00:48]} 38. Rh3 {[%emt 0:01:03]} Rg8 {[%emt 0:04:12]} 39. Kh2 {[%emt 0:02:45]} Bf5 {[%emt 0:00:53]} 40. Rh6 {[%emt 0:00:00]} Rg6 {[%emt 0:00:00]} 41. Rh8 {[%emt 0:03:02]} Kc6 {[%emt 0:10:04]} 42. Ra8 {[%emt 0:02:14]} Kb7 {[%emt 0:10:50]} 43. Rf8 {[%emt 0:00:07]} Rg7 {[%emt 0:00:21]} 44. Rd8 {[%emt 0:00:46]} Bxd3 {[%emt 0:02:52]} 45. Rxd5 {[%emt 0:00:10]} Bf5 {[%emt 0:03:09]} 46. Rd8 {[%emt 0:02:16]} Ka6 {[%emt 0:01:05]} 47. Re8 {[%emt 0:01:23]} Bc2 {[%emt 0:02:51]} 48. Re7 {[%emt 0:00:20]} Bf5 {[%emt 0:00:52]} 49. Rc7 {[%emt 0:05:30]} Be6 {[%emt 0:00:28]} 50. c4 {[%emt 0:00:49]} Rg8 {[%emt 0:00:20]} 51. a5 {[%emt 0:05:09]} Rc8 {[%emt 0:00:35]} 52. axb6 {[%emt 0:00:22]} axb6 {[%emt 0:00:09]} 53. Rxc8 {[%emt 0:00:12]} Bxc8 {[%emt 0:00:01]} 54. Kg3 {[%emt 0:00:10]} Be6 {[%emt 0:00:14]} 55. c5 {[%emt 0:00:05]} bxc5 {[%emt 0:00:15]} 56. Bxc5 {[%emt 0:00:06]} Kb5 {[%emt 0:00:02]} 57. Be7 {[%emt 0:00:19]} Kc6 {[%emt 0:00:03]} 58. Kh4 {[%emt 0:00:07]} Kd5 {[%emt 0:00:10]} 59. f5 {[%emt 0:00:18]} Bxf5 {[%emt 0:00:06]} 60. Bf6 {[%emt 0:02:35]} 1/2-1/2

[Event "12th Arad Open 2019"]
[Site "Arad"]
[Date "2019.07.29"]
[Round "7.27"]
[White "Albu, George"]
[Black "Pasti, Aron"]
[Result "1-0"]
[ECO "D35"]
[WhiteElo "2014"]
[BlackElo "2209"]
[Annotator "NA"]
[PlyCount "49"]
[EventDate "2019.07.24"]
[EventType "swiss"]
[EventCountry "ROU"]
[SourceTitle "playchess.com"]
[Source "ChessBase"]
[SourceQuality "1"]
[TimeControl "40/5400+30:900+30"]

1. d4 {[%emt 0:00:00]} d5 {[%emt 0:00:00]} 2. c4 {[%emt 0:00:00]} e6 {[%emt 0:00:00]} 3. Nc3 {[%emt 0:00:00]} Nf6 {[%emt 0:00:00]} 4. cxd5 {[%emt 0:00:00]} exd5 {[%emt 0:00:00]} 5. Bg5 {[%emt 0:00:08]} Be7 {[%emt 0:00:00]} 6. e3 {[%emt 0:00:14]} O-O {[%emt 0:00:00]} 7. Bd3 {[%emt 0:00:08]} c6 {[%emt 0:00:00]} 8. Qc2 {[%emt 0:00:08]} Nbd7 {[%emt 0:00:05]} 9. Nge2 {[%emt 0:00:09]} Re8 {[%emt 0:00:10]} 10. f3 {[%emt 0:00:09]} Nf8 {[%emt 0:00:32]} 11. O-O {[%emt 0:00:10]} Ng6 {[%emt 0:00:11]} 12. Rad1 {[%emt 0:05:21]} Be6 {[%emt 0:08:21]} 13. Kh1 {[%emt 0:08:53]} Qc7 {[%emt 0:06:37]} 14. Bxf6 {[%emt 0:17:03]} Bxf6 {[%emt 0:02:28]} 15. f4 {[%emt 0:00:41]} Bg4 {[%emt 0:18:31]} 16. Nxd5 {[%emt 0:00:18]} Qd6 {[%emt 0:00:11]} 17. Nxf6+ {[%emt 0:00:09]} Qxf6 {[%emt 0:00:05]} 18. Qd2 {[%emt 0:01:23]} Rad8 {[%emt 0:04:21]} 19. Rde1 {[%emt 0:07:07]} Ne7 {[%emt 0:07:34]} 20. Nc3 {[%emt 0:04:51]} Nd5 {[%emt 0:08:37]} 21. f5 {[%emt 0:08:34]} Bh5 {[%emt 0:15:47]} 22. e4 {[%emt 0:13:22]} Nb4 {[%emt 0:04:09]} 23. e5 {[%emt 0:00:08]} Qh4 {[%emt 0:01:43]} 24. Re4 {[%emt 0:01:07]} Qe7 {[%emt 0:00:18]} 25. Bb1 {[%emt 0:02:05]} 1-0